bitfinex/quotes_BTCUSD_20250727
["timestamp","ask_amount","ask_price","bid_price","bid_amount"]
[1753650642703,6.08568239,118970.0,118960.0,0.00288376]
[1753650650360,5.72104428,118970.0,118960.0,0.00288376]
[1753650650523,6.08568239,118970.0,118960.0,0.00288376]
[1753650651567,5.72104428,118970.0,118960.0,0.00288376]
[1753650651770,6.08568239,118970.0,118960.0,0.00288376]
[1753650654450,6.08568239,118970.0,118960.0,0.02842376]
[1753650655316,6.08568239,118970.0,118960.0,0.00288376]
[1753650657393,6.07718049,118970.0,118960.0,0.00288376]
[1753650657593,6.07718049,118970.0,118960.0,0.03113376]
[1753650660072,1.07718049,118970.0,118960.0,0.03113376]
[1753650660573,6.07718049,118970.0,118960.0,0.03113376]
[1753650663120,6.04596049,118970.0,118960.0,0.03113376]
[1753650663336,5.91872049,118970.0,118960.0,0.03113376]
[1753650663550,1.00267049,118970.0,118960.0,0.03417376]
[1753650663756,0.3344773,118970.0,118960.0,0.6036533]
[1753650663979,0.4615173,118970.0,118960.0,0.6058533]
[1753650665245,0.4615173,118970.0,118960.0,0.6078533]
[1753650665409,0.4615173,118970.0,118960.0,0.6068533]
[1753650665614,0.4615173,118970.0,118960.0,0.6058533]
[1753650665799,0.4615173,118970.0,118960.0,0.6078533]
[1753650665994,0.4615173,118970.0,118960.0,0.6098533]
[1753650667474,0.47005095,118970.0,118960.0,0.6098533]
[1753650672867,0.4615173,118970.0,118960.0,0.6098533]
[1753650674969,0.37704,118970.0,118960.0,0.6098533]
[1753650682979,0.37704,118970.0,118960.0,0.6076533]
[1753650685245,0.37704,118970.0,118960.0,0.5961533]
[1753650685946,0.52553775,118970.0,118960.0,0.03308376]
[1753650686151,0.52553775,118970.0,118960.0,0.17500749]
[1753650686152,1.08469086,118970.0,118960.0,0.17500749]
[1753650686371,1.06788041,118970.0,118960.0,0.00688376]
[1753650687025,1.06788041,118970.0,118960.0,0.00488376]
[1753650687230,1.06788041,118970.0,118960.0,0.00288376]
[1753650712591,1.40788041,118970.0,118960.0,0.00288376]
[1753650718299,1.40788041,118970.0,118960.0,0.00282506]
[1753650719264,1.40788041,118970.0,118960.0,0.00290052]
[1753650719988,1.40812041,118970.0,118960.0,0.00290052]
[1753650722573,1.40808041,118970.0,118960.0,0.00290052]
[1753650724898,1.43344938,118970.0,118960.0,0.00290052]
[1753650725114,1.30620938,118970.0,118960.0,0.00290052]
[1753650725563,1.43344938,118970.0,118960.0,0.00290052]
[1753650728194,1.43344938,118970.0,118960.0,0.00282506]
[1753650729388,1.43344938,118970.0,118960.0,0.00290891]
[1753650755408,1.30620938,118970.0,118960.0,0.00290891]
[1753650755617,1.43324938,118970.0,118960.0,0.00290891]
[1753650758409,1.30620938,118970.0,118960.0,0.00290891]
[1753650758638,1.43324938,118970.0,118960.0,0.00290891]
[1753650762586,1.30620938,118970.0,118960.0,0.00290891]
[1753650762824,1.43328938,118970.0,118960.0,0.00290891]
[1753650763913,1.30620938,118970.0,118960.0,0.00290891]
[1753650764051,1.43324938,118970.0,118960.0,0.00290891]
[1753650766366,1.30620938,118970.0,118960.0,0.00290891]
[1753650766575,1.43324938,118970.0,118960.0,0.00290891]
[1753650768406,1.30620938,118970.0,118960.0,0.00290891]
[1753650768630,1.43324938,118970.0,118960.0,0.00290891]
[1753650772068,1.06861127,118970.0,118960.0,0.00290891]
[1753650772312,1.43324938,118970.0,118960.0,0.03004891]
[1753650775000,1.42906168,118970.0,118960.0,0.03004891]
[1753650778931,1.42906168,118970.0,118960.0,0.02790891]
[1753650780110,1.30202168,118970.0,118960.0,0.02790891]
[1753650780349,1.42910168,118970.0,118960.0,0.02790891]
[1753650780970,1.42910168,118970.0,118960.0,0.00290891]
[1753650782389,1.30202168,118970.0,118960.0,0.00290891]
[1753650782631,1.42910168,118970.0,118960.0,0.00290891]
[1753650783853,1.30202168,118970.0,118960.0,0.00290891]
[1753650784056,1.42910168,118970.0,118960.0,0.00290891]
[1753650786366,1.06446357,118970.0,118960.0,0.00290891]
[1753650786587,1.42910168,118970.0,118960.0,0.00290891]
[1753650787311,1.40373271,118970.0,118960.0,0.00290891]
[1753650788803,1.42864942,118970.0,118960.0,0.00290891]
[1753650792173,1.42864942,118970.0,118960.0,0.02807891]
[1753650792552,1.30156942,118970.0,118960.0,0.02807891]
[1753650792811,1.42864942,118970.0,118960.0,0.02807891]
[1753650796364,1.30156942,118970.0,118960.0,0.02807891]
[1753650796571,1.42860942,118970.0,118960.0,0.00290891]
[1753650797551,1.30156942,118970.0,118960.0,0.00290891]
[1753650797784,1.42860942,118970.0,118960.0,0.00290891]
[1753650798428,1.30156942,118970.0,118960.0,0.00290891]
[1753650798560,1.42860942,118970.0,118960.0,0.00290891]
[1753650810537,1.06397131,118970.0,118960.0,0.00290891]
[1753650810727,1.42860942,118970.0,118960.0,0.00290891]
[1753650812832,1.30156942,118970.0,118960.0,0.00290891]
[1753650813024,1.42860942,118970.0,118960.0,0.00290891]
[1753650818479,1.30156942,118970.0,118960.0,0.00290891]
[1753650818704,1.42860942,118970.0,118960.0,0.00290891]
[1753650822440,1.30156942,118970.0,118960.0,0.00290891]
[1753650822662,1.42860942,118970.0,118960.0,0.00290891]
[1753650825222,6.30156942,118970.0,118960.0,0.00290891]
[1753650825400,6.42860942,118970.0,118960.0,0.00290891]
[1753650825819,6.42860942,118970.0,118960.0,0.02623891]
[1753650826306,6.42860942,118970.0,118960.0,0.00290891]
[1753650827331,6.06397131,118970.0,118960.0,0.00290891]
[1753650827544,6.42860942,118970.0,118960.0,0.00290891]
[1753650830593,1.42860942,118970.0,118960.0,0.00290891]
[1753650830780,6.42860942,118970.0,118960.0,0.00290891]
[1753650831416,6.06397131,118970.0,118960.0,0.00290891]
[1753650831617,6.42860942,118970.0,118960.0,0.00290891]
[1753650836701,6.37860942,118970.0,118960.0,0.00290891]
[1753650838643,6.79743523,118970.0,118960.0,0.00290891]
[1753650838841,7.24653523,118970.0,118960.0,0.00290891]
[1753650839504,7.28322506,118970.0,118960.0,0.00290891]
[1753650839719,7.28522506,118970.0,118960.0,0.00290891]
[1753650839948,2.28322506,118970.0,118960.0,0.00290891]
[1753650840156,7.31270711,118970.0,118960.0,0.00290891]
[1753650840405,7.31570711,118970.0,118960.0,0.00290891]
[1753650840643,6.86660711,118970.0,118960.0,1e-08]
[1753650841612,6.86560711,118970.0,118960.0,1e-08]
[1753650841838,6.86660711,118970.0,118960.0,1e-08]
[1753650845063,6.86659342,118970.0,118960.0,1e-08]
[1753650845919,7.01659342,118970.0,118960.0,1e-08]
[1753650846579,7.01659003,118970.0,118960.0,1e-08]
[1753650846990,7.01657722,118970.0,118960.0,1e-08]
[1753650847207,7.00869653,118970.0,118960.0,1e-08]
[1753650850669,7.01653703,118970.0,118960.0,1e-08]
[1753650851154,2.01653703,118970.0,118960.0,1e-08]
[1753650851384,7.01553703,118970.0,118960.0,1e-08]
[1753650851627,7.01352772,118970.0,118960.0,1e-08]
[1753650851864,7.01752772,118970.0,118960.0,1e-08]
[1753650852152,7.02352772,118970.0,118960.0,1e-08]
[1753650852353,6.99861101,118970.0,118960.0,1e-08]
[1753650854361,2.00300355,118970.0,118960.0,1e-08]
[1753650854572,7.00300355,118970.0,118960.0,1e-08]
[1753650855696,7.20300355,118970.0,118960.0,1e-08]
[1753650856148,7.22832054,118970.0,118960.0,1e-08]
[1753650856350,7.22830754,118970.0,118960.0,1e-08]
[1753650856767,7.2283003,118970.0,118960.0,1e-08]
[1753650857403,2.2283003,118970.0,118960.0,1e-08]
[1753650857620,7.2283003,118970.0,118960.0,1e-08]
[1753650858293,7.22829868,118970.0,118960.0,1e-08]
[1753650861322,7.22829659,118970.0,118960.0,1e-08]
[1753650861546,2.22829659,118970.0,118960.0,1e-08]
[1753650861759,7.22829659,118970.0,118960.0,1e-08]
[1753650862184,7.22829662,118970.0,118960.0,1e-08]
[1753650862408,7.10125662,118970.0,118960.0,1e-08]
[1753650862659,7.17837662,118970.0,118960.0,0.02550001]
[1753650864625,7.05125662,118970.0,118960.0,0.02550001]
[1753650864845,7.17837662,118970.0,118960.0,0.02550001]
[1753650865061,7.17838084,118970.0,118960.0,0.02550001]
[1753650865283,7.17842084,118970.0,118960.0,0.02550001]
[1753650865496,7.15687583,118970.0,118960.0,0.02550001]
[1753650865705,7.01471805,118970.0,118960.0,0.02550001]
[1753650866148,6.87775794,118970.0,118960.0,0.02550001]
[1753650866365,7.00491794,118970.0,118960.0,0.02550001]
[1753650866608,7.00487794,118970.0,118960.0,0.02550001]
[1753650867040,6.99899788,118970.0,118960.0,0.02550001]
[1753650867339,7.02840522,118970.0,118960.0,0.02550001]
[1753650867590,6.82921915,118970.0,118960.0,0.02851001]
[1753650868021,1.82921915,118970.0,118960.0,0.02851001]
[1753650868210,6.82137697,118970.0,118960.0,0.02851001]
[1753650868358,6.71780919,118970.0,118960.0,0.02851001]
[1753650868577,6.84492906,118970.0,118960.0,0.02851001]
[1753650869345,6.71781171,118970.0,118960.0,0.02851001]
[1753650869553,6.91985171,118970.0,118960.0,0.02851001]
[1753650869759,7.04701171,118970.0,118960.0,0.02851001]
[1753650871563,6.94873171,118970.0,118960.0,1e-08]
[1753650871779,7.4620234,118970.0,118960.0,1e-08]
[1753650872233,7.09738529,118970.0,118960.0,1e-08]
[1753650872451,6.76818529,118970.0,118960.0,1e-08]
[1753650872664,7.09734529,118970.0,118960.0,1e-08]
[1753650873521,6.76818529,118970.0,118960.0,1e-08]
[1753650873737,7.09742529,118970.0,118960.0,1e-08]
[1753650873955,6.76818529,118970.0,118960.0,1e-08]
[1753650874168,7.09742529,118970.0,118960.0,1e-08]
[1753650874355,6.76818529,118970.0,118960.0,1e-08]
[1753650874571,7.09742529,118970.0,118960.0,1e-08]
[1753650875435,6.76818529,118970.0,118960.0,1e-08]
[1753650875638,7.09742529,118970.0,118960.0,1e-08]
[1753650877386,2.09742529,118970.0,118960.0,1e-08]
[1753650877617,7.09742529,118970.0,118960.0,1e-08]
[1753650877826,7.5120634,118970.0,118960.0,1e-08]
[1753650878669,7.53325737,118970.0,118960.0,1e-08]
[1753650878954,7.52737063,118970.0,118960.0,1e-08]
[1753650879162,7.53326151,118970.0,118960.0,1e-08]
[1753650879579,7.51167264,118970.0,118960.0,1e-08]
[1753650879788,7.16859653,118970.0,118960.0,1e-08]
[1753650880212,7.14740256,118970.0,118960.0,1e-08]
[1753650880843,7.12590898,118970.0,118960.0,1e-08]
[1753650881760,2.12590898,118970.0,118960.0,1e-08]
[1753650881999,7.12590898,118970.0,118960.0,1e-08]
[1753650882514,7.12591786,118970.0,118960.0,1e-08]
[1753650882974,2.12591786,118970.0,118960.0,1e-08]
[1753650883179,7.12591786,118970.0,118960.0,1e-08]
[1753650884937,7.49055597,118970.0,118960.0,1e-08]
[1753650887015,0.80812373,118960.0,118940.0,0.00601]
[1753650887267,7.30789625,118950.0,118940.0,0.00613268]
[1753650887532,7.55789625,118950.0,118940.0,0.00819268]
[1753650887824,7.58316225,118950.0,118940.0,0.00819268]
[1753650888852,7.60692225,118950.0,118940.0,0.00819268]
[1753650889813,7.81096225,118950.0,118940.0,0.00819268]
[1753650890236,7.36386225,118950.0,118940.0,0.00819268]
[1753650891015,7.36898225,118950.0,118940.0,0.00312268]
[1753650893650,7.37487663,118950.0,118940.0,0.00312268]
[1753650893892,7.39059521,118950.0,118940.0,0.00312268]
[1753650895278,7.37487663,118950.0,118940.0,0.00312268]
[1753650895551,7.39059422,118950.0,118940.0,0.00312268]
[1753650896249,7.37487663,118950.0,118940.0,0.00312268]
[1753650899911,7.38803883,118950.0,118940.0,0.00312268]
[1753650900312,7.40375627,118950.0,118940.0,0.00312268]
[1753650901973,7.40375701,118950.0,118940.0,0.00312268]
[1753650902390,7.4116156,118950.0,118940.0,0.00312268]
[1753650903365,7.4116176,118950.0,118940.0,0.00312268]
[1753650903590,7.4116176,118950.0,118940.0,1e-08]
[1753650909641,7.41161435,118950.0,118940.0,1e-08]
[1753650910696,7.41161113,118950.0,118940.0,1e-08]
[1753650916262,7.41161044,118950.0,118940.0,1e-08]
[1753650919142,7.41161113,118950.0,118940.0,1e-08]
[1753650921981,7.4116053,118950.0,118940.0,1e-08]
[1753650925376,7.4620653,118950.0,118940.0,1e-08]
[1753650925616,7.4116053,118950.0,118940.0,1e-08]
[1753650926288,7.41160725,118950.0,118940.0,1e-08]
[1753650927595,7.4116076,118950.0,118940.0,1e-08]
[1753650928795,7.39786478,118950.0,118940.0,1e-08]
[1753650928998,7.41162107,118950.0,118940.0,1e-08]
[1753650929981,7.38214445,118950.0,118940.0,1e-08]
[1753650930174,7.4116244,118950.0,118940.0,1e-08]
[1753650930600,7.40376309,118950.0,118940.0,1e-08]
[1753650931059,7.41162578,118950.0,118940.0,1e-08]
[1753650932404,7.41163002,118950.0,118940.0,1e-08]
[1753650932558,7.41163245,118950.0,118940.0,1e-08]
[1753650935504,7.41163623,118950.0,118940.0,1e-08]
[1753650935927,0.52498225,118930.0,118920.0,0.41176058]
[1753650936145,6.48158354,118930.0,118920.0,0.41389058]
[1753650936566,6.50685254,118930.0,118920.0,0.41389058]
[1753650937333,6.52495254,118930.0,118920.0,0.41389058]
[1753650937579,6.97703254,118930.0,118920.0,0.41389058]
[1753650938617,6.9770364,118930.0,118920.0,0.41389058]
[1753650939466,6.9999864,118930.0,118920.0,0.41389058]
[1753650940126,7.0179864,118930.0,118920.0,0.41389058]
[1753650940335,7.0179864,118930.0,118920.0,0.38656058]
[1753650940549,7.02601596,118930.0,118920.0,0.38656058]
[1753650940761,7.02601596,118930.0,118920.0,0.38443058]
[1753650940762,7.02919596,118930.0,118920.0,0.38443058]
[1753650941437,7.03019596,118930.0,118920.0,0.38443058]
[1753650942319,7.03119596,118930.0,118920.0,0.38443058]
[1753650942544,7.03319596,118930.0,118920.0,0.38443058]
[1753650943796,2.03119596,118930.0,118920.0,0.38443058]
[1753650943979,7.02919596,118930.0,118920.0,0.38443058]
[1753650944212,7.03319596,118930.0,118920.0,0.38443058]
[1753650944389,7.03619596,118930.0,118920.0,0.38443058]
[1753650945796,2.03619596,118930.0,118920.0,0.38443058]
[1753650945968,7.03619596,118930.0,118920.0,0.38443058]
[1753650946824,7.03618947,118930.0,118920.0,0.38443058]
[1753650947043,7.03618684,118930.0,118920.0,0.38443058]
[1753650948004,7.04404908,118930.0,118920.0,0.38443058]
[1753650949116,2.04404908,118930.0,118920.0,0.38443058]
[1753650949348,7.04404908,118930.0,118920.0,0.38443058]
[1753650949596,6.96592991,118930.0,118920.0,0.41267058]
[1753650949804,6.96592991,118930.0,118920.0,0.42527058]
[1753650951733,6.6012918,118930.0,118920.0,0.42857058]
[1753650951959,6.56029766,118930.0,118920.0,0.42857058]
[1753650952179,6.92493577,118930.0,118920.0,0.42857058]
[1753650955861,6.56029766,118930.0,118920.0,0.42857058]
[1753650958644,6.19565955,118930.0,118920.0,0.42857058]
[1753650958862,6.56029766,118930.0,118920.0,0.42857058]
[1753650961729,6.56029766,118930.0,118920.0,0.42527058]
[1753650964412,6.58428766,118930.0,118920.0,0.42527058]
[1753650965451,6.56029766,118930.0,118920.0,0.42527058]
[1753650967358,6.56029766,118930.0,118920.0,0.42857058]
[1753650967576,6.19565955,118930.0,118920.0,0.42857058]
[1753650967784,6.56029766,118930.0,118920.0,0.42527058]
[1753650968373,6.55629766,118930.0,118920.0,0.42527058]
[1753650968573,6.58028766,118930.0,118920.0,0.42527058]
[1753650968790,6.58228766,118930.0,118920.0,0.42527058]
[1753650969206,6.57928766,118930.0,118920.0,0.42527058]
[1753650970068,1.57928766,118930.0,118920.0,0.42527058]
[1753650970282,6.58128766,118930.0,118920.0,0.42527058]
[1753650971094,6.58128766,118930.0,118920.0,0.40240058]
[1753650971313,6.37920766,118930.0,118920.0,0.40240058]
[1753650971518,6.37920766,118930.0,118920.0,0.38980058]
[1753650973178,6.37920766,118930.0,118920.0,0.38656058]
[1753650975726,6.01456955,118930.0,118920.0,0.38656058]
[1753650975944,6.37920766,118930.0,118920.0,0.38656058]
[1753650976152,6.38122766,118930.0,118920.0,0.38656058]
[1753650978654,1.35521766,118930.0,118920.0,0.42890058]
[1753650979602,1.35121766,118930.0,118920.0,0.42890058]
[1753650979820,1.35221766,118930.0,118920.0,0.59708086]
[1753650980067,1.35321766,118930.0,118920.0,0.42890058]
[1753650980895,1.01321766,118930.0,118920.0,0.59708086]
[1753650981102,1.01321766,118930.0,118920.0,0.60238086]
[1753650981502,1.35321766,118930.0,118920.0,0.60238086]
[1753650982351,1.36162596,118930.0,118920.0,0.60238086]
[1753650982579,0.99698785,118930.0,118920.0,0.6107898]
[1753650982784,1.36162596,118930.0,118920.0,0.6107898]
[1753650983169,1.35321766,118930.0,118920.0,0.6107898]
[1753650983806,1.36162596,118930.0,118920.0,0.61078987]
[1753650985081,1.36162596,118930.0,118920.0,0.60238086]
[1753650985652,1.36162596,118930.0,118920.0,0.61078987]
[1753650985851,1.36162596,118930.0,118920.0,0.61919881]
[1753650986025,1.36162596,118930.0,118920.0,0.61078987]
[1753650986228,1.36162596,118930.0,118920.0,0.60238086]
[1753650988668,1.36162596,118930.0,118920.0,0.61078987]
[1753650988907,1.36162596,118930.0,118920.0,0.60238086]
[1753650990095,1.36162596,118930.0,118920.0,0.59708086]
[1753650990290,1.36162596,118930.0,118920.0,0.60548987]
[1753650990698,1.36162596,118930.0,118920.0,0.59708086]
[1753650991094,1.36162596,118930.0,118920.0,0.60548987]
[1753650991529,0.84454341,118930.0,118920.0,0.61389867]
[1753650991731,1.20186749,118930.0,118920.0,0.61389867]
[1753650991937,1.37003363,118930.0,118920.0,0.61389881]
[1753650992399,1.07474742,118930.0,118920.0,0.62230761]
[1753650992605,0.83762931,118930.0,118920.0,0.62230761]
[1753650992820,1.20226742,118930.0,118920.0,0.62230761]
[1753650993021,1.20226742,118930.0,118920.0,0.62230768]
[1753650993237,1.21798919,118930.0,118920.0,0.63071641]
[1753650993670,1.19385919,118930.0,118920.0,0.63071641]
[1753650994224,0.86391924,118930.0,118920.0,0.58837648]
[1753650994426,1.22855735,118930.0,118920.0,0.57996768]
[1753650994625,0.86391924,118930.0,118920.0,0.58837648]
[1753650994851,0.86175924,118930.0,118920.0,0.58837648]
[1753650995281,0.86175924,118930.0,118920.0,0.57996768]
[1753650995515,0.74264747,118930.0,118920.0,0.57996768]
[1753650995647,0.87016747,118930.0,118920.0,0.58837648]
[1753650996096,0.87016747,118930.0,118920.0,0.60297648]
[1753650996266,0.87232747,118930.0,118920.0,0.60297648]
[1753650996473,0.87232747,118930.0,118920.0,0.58837648]
[1753650997068,0.87232747,118930.0,118920.0,0.57996768]
[1753650998002,0.85551108,118930.0,118920.0,0.57996768]
[1753650998226,0.85335108,118930.0,118920.0,0.58837648]
[1753650998431,0.85335108,118930.0,118920.0,0.59678521]
[1753650998631,0.85335108,118930.0,118920.0,0.58837648]
[1753650999058,0.85551108,118930.0,118920.0,0.59678521]
[1753650999247,0.85551108,118930.0,118920.0,0.58837648]
[1753650999694,0.85551108,118930.0,118920.0,0.57996768]
[1753650999910,0.88594931,118930.0,118920.0,0.57996768]
[1753651000141,0.86391931,118930.0,118920.0,0.57155881]
[1753651000354,0.85551108,118930.0,118920.0,0.58837648]
[1753651000698,0.86391931,118930.0,118920.0,0.57996768]
[1753651000910,0.86391931,118930.0,118920.0,0.57155881]
[1753651001123,0.86391931,118930.0,118920.0,0.57996768]
[1753651001338,0.88524931,118930.0,118920.0,0.57155881]
[1753651001466,0.88524931,118930.0,118920.0,0.57996768]
[1753651001886,0.86684931,118930.0,118920.0,0.57155881]
[1753651002300,0.73092108,118930.0,118920.0,0.57996768]
[1753651002501,0.85840108,118930.0,118920.0,0.58837648]
[1753651002964,0.85547108,118930.0,118920.0,0.58837648]
[1753651004207,0.84706299,118930.0,118920.0,0.59678521]
[1753651004444,0.85547108,118930.0,118920.0,0.58837648]
[1753651005698,0.84706299,118930.0,118920.0,0.59678521]
[1753651005905,0.85547101,118930.0,118920.0,0.59678521]
[1753651006111,0.86387917,118930.0,118920.0,0.58837648]
[1753651006320,0.86387917,118930.0,118920.0,0.57996768]
[1753651006719,0.88287966,118930.0,118920.0,0.56314987]
[1753651006920,1.41568391,118930.0,118920.0,0.56314987]
[1753651007122,1.41861391,118930.0,118920.0,0.56314987]
[1753651007327,1.43811391,118930.0,118920.0,0.56314987]
[1753651007536,1.43723391,118930.0,118920.0,0.56314987]
[1753651007752,1.43623391,118930.0,118920.0,0.56314987]
[1753651007963,1.43623391,118930.0,118920.0,0.55474086]
[1753651008172,1.42782596,118930.0,118920.0,0.55474086]
[1753651008377,1.42782596,118930.0,118920.0,0.56314987]
[1753651008729,1.42782596,118930.0,118920.0,0.56942881]
[1753651008943,1.42782596,118930.0,118920.0,0.56101987]
[1753651009550,1.25965982,118930.0,118920.0,0.56942881]
[1753651009760,1.25965982,118930.0,118920.0,0.56101987]
[1753651009977,1.42782596,118930.0,118920.0,0.55261086]
[1753651010556,1.41941794,118930.0,118920.0,0.55261086]
[1753651010972,1.41941794,118930.0,118920.0,0.38443058]
[1753651011197,1.41100978,118930.0,118920.0,0.38443058]
[1753651012009,1.28340978,118930.0,118920.0,0.38443058]
[1753651012213,1.41100978,118930.0,118920.0,0.55261086]
[1753651018835,1.40260155,118930.0,118920.0,0.55261086]
[1753651026818,1.03796344,118930.0,118920.0,0.55261086]
[1753651027018,1.40260155,118930.0,118920.0,0.55261086]
[1753651027442,1.03796344,118930.0,118920.0,0.55261086]
[1753651027726,1.40260155,118930.0,118920.0,0.55261086]
[1753651028574,1.03796344,118930.0,118920.0,0.55261086]
[1753651028723,1.40260155,118930.0,118920.0,0.55261086]
[1753651030183,1.40260155,118930.0,118920.0,0.55476086]
[1753651033615,1.42273554,118930.0,118920.0,0.58137086]
[1753651034373,1.20253082,118930.0,118920.0,0.58977987]
[1753651034728,1.21934735,118930.0,118920.0,0.58137086]
[1753651034911,1.21934735,118930.0,118920.0,0.5897798]
[1753651035583,1.23738735,118930.0,118920.0,0.5897798]
[1753651035788,1.26115735,118930.0,118920.0,0.5897798]
[1753651036758,0.76907924,118930.0,118920.0,0.59818867]
[1753651036969,1.26115735,118930.0,118920.0,0.5897798]
[1753651037171,0.75226299,118930.0,118920.0,0.59818867]
[1753651037417,0.88811115,118930.0,118920.0,0.59818867]
[1753651037568,1.25274926,118930.0,118920.0,0.60659747]
[1753651037761,1.2443411,118930.0,118920.0,0.60659747]
[1753651037946,1.25274919,118930.0,118920.0,0.60659747]
[1753651038356,1.12530919,118930.0,118920.0,0.60659747]
[1753651038550,0.88811108,118930.0,118920.0,0.6150062]
[1753651038752,0.88811101,118930.0,118920.0,0.6150062]
[1753651038953,1.21554912,118930.0,118920.0,0.60659747]
[1753651039167,1.23484912,118930.0,118920.0,0.60659747]
[1753651039389,1.23484912,118930.0,118920.0,0.58298747]
[1753651039612,1.21107912,118930.0,118920.0,0.6150062]
[1753651039821,1.25294912,118930.0,118920.0,0.60659747]
[1753651040028,1.25294912,118930.0,118920.0,0.57998747]
[1753651040650,1.26135728,118930.0,118920.0,0.57998747]
[1753651040848,1.25294912,118930.0,118920.0,0.57998747]
[1753651041063,1.25294912,118930.0,118920.0,0.5883962]
[1753651041476,1.25294912,118930.0,118920.0,0.57998747]
[1753651042018,1.25294912,118930.0,118920.0,0.5883962]
[1753651042444,1.25294912,118930.0,118920.0,0.57998747]
[1753651042848,1.25490912,118930.0,118920.0,0.57998747]
[1753651043294,1.26331728,118930.0,118920.0,0.57157867]
[1753651043723,1.26331728,118930.0,118920.0,0.5631698]
[1753651043935,1.27172551,118930.0,118920.0,0.5631698]
[1753651044146,1.27471551,118930.0,118920.0,0.5631698]
[1753651044354,1.26630728,118930.0,118920.0,0.57157867]
[1753651045172,1.26630728,118930.0,118920.0,0.5631698]
[1753651045373,1.26630728,118930.0,118920.0,0.57157867]
[1753651045580,0.86898101,118930.0,118920.0,0.57157867]
[1753651045829,1.23361912,118930.0,118920.0,0.57998747]
[1753651046260,0.8773891,118930.0,118920.0,0.57998747]
[1753651046485,1.24202728,118930.0,118920.0,0.57157867]
[1753651046695,1.26082728,118930.0,118920.0,0.57157867]
[1753651046921,1.26082728,118930.0,118920.0,0.5631698]
[1753651047141,1.26082728,118930.0,118920.0,0.5715786]
[1753651047390,1.25241912,118930.0,118920.0,0.5715786]
[1753651048350,1.26082728,118930.0,118920.0,0.57157867]
[1753651048558,1.25241912,118930.0,118920.0,0.57998747]
[1753651049743,1.26082728,118930.0,118920.0,0.57157867]
[1753651050502,1.25241912,118930.0,118920.0,0.57998747]
[1753651050863,1.26082728,118930.0,118920.0,0.57998747]
[1753651051112,1.26283728,118930.0,118920.0,0.57998747]
[1753651051344,1.25442912,118930.0,118920.0,0.57998747]
[1753651052235,1.25442912,118930.0,118920.0,0.5883962]
[1753651052471,0.88979101,118930.0,118920.0,0.5883962]
[1753651052728,1.10816315,118930.0,118920.0,0.59680451]
[1753651052995,0.8019173,118930.0,118920.0,1.36792037]
[1753651053211,0.8019173,118930.0,118920.0,1.00858226]
[1753651054099,0.6744773,118930.0,118920.0,1.00858226]
[1753651054312,0.8019173,118930.0,118920.0,1.00858226]
[1753651054670,0.8019173,118930.0,118920.0,1.01158226]
[1753651055866,0.8019173,118930.0,118920.0,1.01358226]
[1753651056309,0.81040595,118930.0,118920.0,1.01358226]
[1753651057274,0.8019173,118930.0,118920.0,1.37822037]
[1753651057473,0.2119173,118930.0,118920.0,1.37822037]
[1753651057691,0.2119173,118930.0,118920.0,1.01358226]
[1753651057835,0.2119173,118930.0,118920.0,1.37822037]
[1753651058035,0.2119173,118930.0,118920.0,1.01358226]
[1753651058237,0.2119173,118930.0,118920.0,1.06266063]
[1753651058774,0.25,118940.0,118930.0,0.2079902]
[1753651058939,0.8019173,118940.0,118930.0,0.57464831]
[1753651059126,0.8019173,118940.0,118930.0,0.60188831]
[1753651059747,0.81048239,118940.0,118930.0,0.60188831]
[1753651059963,0.81048239,118940.0,118930.0,0.60288831]
[1753651060579,0.81048239,118940.0,118930.0,0.60488831]
[1753651060948,0.8019173,118940.0,118930.0,0.61018831]
[1753651061598,0.5519173,118940.0,118930.0,0.61018831]
[1753651062036,0.5519173,118940.0,118930.0,0.60488831]
[1753651062712,0.8019173,118940.0,118930.0,0.60488831]
[1753651063631,0.5519173,118940.0,118930.0,0.60488831]
[1753651064062,0.2119173,118940.0,118930.0,0.60488831]
[1753651064670,0.2119173,118940.0,118930.0,0.64801897]
[1753651064931,0.2119173,118940.0,118930.0,0.61018831]
[1753651065971,0.2119173,118940.0,118930.0,0.60488831]
[1753651066334,0.2119173,118940.0,118930.0,0.59028831]
[1753651068351,0.2119173,118940.0,118930.0,0.60773733]
[1753651068486,0.2119173,118940.0,118930.0,0.62233733]
[1753651069087,0.2119173,118940.0,118930.0,0.60773733]
[1753651069515,0.4844573,118940.0,118930.0,0.58359733]
[1753651071699,0.4844573,118940.0,118930.0,0.58259733]
[1753651072047,0.4844573,118940.0,118930.0,0.58559733]
[1753651072420,0.4844573,118940.0,118930.0,0.58359733]
[1753651072757,0.5023573,118940.0,118930.0,0.58359733]
[1753651072985,0.5023573,118940.0,118930.0,0.58349733]
[1753651076483,0.5219573,118940.0,118930.0,0.58349733]
[1753651078611,0.5270873,118940.0,118930.0,0.17416614]
[1753651078860,0.90853961,118940.0,118930.0,0.19098253]
[1753651079119,0.90853961,118940.0,118930.0,0.19939048]
[1753651079350,1.4166921,118940.0,118930.0,0.006]
[1753651079564,1.48434252,118940.0,118930.0,0.006]
[1753651080422,0.40392371,118930.0,118920.0,0.56942787]
[1753651080609,0.86346721,118930.0,118920.0,0.56942787]
[1753651080842,0.88246898,118930.0,118920.0,0.57783646]
[1753651081390,1.00982898,118930.0,118920.0,0.57783646]
[1753651081605,1.26823714,118930.0,118920.0,0.57242787]
[1753651081804,1.27664544,118930.0,118920.0,0.57242801]
[1753651082017,1.26823714,118930.0,118920.0,0.58924554]
[1753651082724,1.27664544,118930.0,118920.0,0.57242801]
[1753651082920,1.44481158,118930.0,118920.0,0.57242801]
[1753651083327,1.43640391,118930.0,118920.0,0.56401914]
[1753651083727,1.43640391,118930.0,118920.0,0.56701914]
[1753651084098,1.25982947,118930.0,118920.0,0.57542801]
[1753651084952,1.25982947,118930.0,118920.0,0.56701921]
[1753651085150,1.25982947,118930.0,118920.0,0.58383702]
[1753651085593,1.25982947,118930.0,118920.0,0.5586102]
[1753651085726,1.25142131,118930.0,118920.0,0.57542801]
[1753651086290,1.25982947,118930.0,118920.0,0.57542808]
[1753651086542,1.25142131,118930.0,118920.0,0.58383688]
[1753651086942,1.25142096,118930.0,118920.0,0.58383681]
[1753651087081,1.25142096,118930.0,118920.0,0.59224547]
[1753651087495,1.25982898,118930.0,118920.0,0.58383688]
[1753651087702,1.25982898,118930.0,118920.0,0.59224561]
[1753651088505,1.25142096,118930.0,118920.0,0.60065427]
[1753651088738,1.25982898,118930.0,118920.0,0.60065427]
[1753651088936,1.43640335,118930.0,118920.0,0.5586102]
[1753651089352,1.43640335,118930.0,118920.0,0.56701921]
[1753651090225,1.42799568,118930.0,118920.0,0.5586102]
[1753651091090,1.06335757,118930.0,118920.0,0.5586102]
[1753651091408,1.25982954,118930.0,118920.0,0.5586102]
[1753651091627,1.42799568,118930.0,118920.0,0.5586102]
[1753651092486,1.25982954,118930.0,118920.0,0.56701921]
[1753651092748,1.25982954,118930.0,118920.0,0.57542815]
[1753651092968,1.25982954,118930.0,118920.0,0.56701921]
[1753651093637,1.26823784,118930.0,118920.0,0.56701921]
[1753651095163,1.43640398,118930.0,118920.0,0.5586102]